bitfinex/quotes_SOLUSD_20220227
["timestamp","ask_amount","ask_price","bid_price","bid_amount"]
[1645943510552,12.99082389,88.897,88.792,115.86236546]
[1645943510753,16.7672175,88.898,88.791,49.1429]
[1645943510754,0.53050127,88.898,88.794,113.5]
[1645943510953,0.53050127,88.898,88.795,2.79108262]
[1645943511153,0.53050127,88.898,88.81,16.57]
[1645943511353,0.53050127,88.898,88.811,57.73182148]
[1645943511555,0.53050127,88.898,88.812,2.72858372]
[1645943512054,4.32838743,88.897,88.812,2.72858372]
[1645943512355,29.22754012,88.897,88.812,2.72858372]
[1645943512654,0.53050127,88.896,88.812,2.72858372]
[1645943513055,2.74678921,88.895,88.811,54.93378653]
[1645943513258,7.0,88.891,88.792,2.86751965]
[1645943513454,16.57,88.89,88.792,2.86751965]
[1645943513655,5.85469752,88.889,88.792,2.86751965]
[1645943513856,28.30585192,88.889,88.792,2.86751965]
[1645943514055,7.0,88.886,88.792,2.86751965]
[1645943514361,24.89915269,88.885,88.793,50.18633112]
[1645943514557,1.76879909,88.884,88.793,50.18633112]
[1645943514756,1.76879909,88.884,88.794,2.65495924]
[1645943514955,8.65677486,88.883,88.794,2.65495924]
[1645943515156,29.22754012,88.883,88.794,2.65495924]
[1645943515356,1.69130294,88.882,88.794,2.65495924]
[1645943515556,6.01969037,88.882,88.794,2.65495924]
[1645943515757,0.53050127,88.881,88.794,2.65495924]
[1645943515957,1.40866052,88.88,88.794,2.65495924]
[1645943516158,5.73704795,88.88,88.794,2.65495924]
[1645943516358,24.89915269,88.879,88.794,2.65495924]
[1645943516557,1.66305009,88.878,88.794,2.65495924]
[1645943516759,24.89915269,88.879,88.794,2.65495924]
[1645943517359,0.53050127,88.881,88.794,2.65495924]
[1645943518859,0.53050127,88.887,88.794,2.65495924]
[1645943519861,4.32838743,88.886,88.794,2.65495924]
[1645943520262,29.22754012,88.886,88.794,2.65495924]
[1645943520463,16.8958,88.88,88.794,2.65495924]
[1645943520662,1.70872904,88.879,88.794,2.65495924]
[1645943520861,6.21072904,88.879,88.794,2.65495924]
[1645943521059,29.22754012,88.878,88.794,2.65495924]
[1645943521259,7.0,88.876,88.794,2.65495924]
[1645943521461,7.0,88.876,88.795,49.6717766]
[1645943521661,4.32838743,88.875,88.795,49.6717766]
[1645943521859,7.0,88.874,88.796,2.55159191]
[1645943522266,4.32838743,88.873,88.796,2.55159191]
[1645943522864,8.65677486,88.873,88.796,2.55159191]
[1645943523063,7.0,88.871,88.796,2.55159191]
[1645943525567,0.53050127,88.87,88.796,2.55159191]
[1645943528572,0.53050127,88.878,88.796,2.55159191]
[1645943530474,8.65677486,88.877,88.796,2.55159191]
[1645943530673,29.22754012,88.877,88.796,2.55159191]
[1645943531074,0.53050127,88.876,88.796,2.55159191]
[1645943531275,0.53050127,88.876,88.801,113.5]
[1645943531474,0.53050127,88.876,88.802,2.7815435]
[1645943531675,0.53050127,88.876,88.804,2.79799726]
[1645943532075,0.53050127,88.876,88.806,113.5]
[1645943532282,0.53050127,88.876,88.821,113.5]
[1645943532479,0.53050127,88.876,88.823,113.5]
[1645943532677,0.53050127,88.876,88.824,2.87049451]
[1645943533078,0.53050127,88.876,88.825,2.74678921]
[1645943533278,0.53050127,88.876,88.84,16.57]
[1645943533477,0.53050127,88.876,88.841,2.52913068]
[1645943534378,0.53050127,88.912,88.841,2.52913068]
[1645943535004,0.53050127,88.912,88.842,2.74678921]
[1645943535603,0.53050127,88.912,88.841,2.52913068]
[1645943537404,0.53050127,88.917,88.841,2.52913068]
[1645943537607,0.53050127,88.917,88.826,47.6701]
[1645943537805,0.53050127,88.917,88.827,2.67951609]
[1645943538005,112.2,88.911,88.827,2.67951609]
[1645943538206,1.84804119,88.91,88.826,47.6701]
[1645943539407,1.84804119,88.91,88.827,2.93541914]
[1645943539707,7.0,88.904,88.827,2.93541914]
[1645943539907,7.0,88.904,88.826,47.6701]
[1645943540111,1.84804119,88.91,88.826,47.6701]
[1645943540307,7.0,88.899,88.826,47.6701]
[1645943541411,0.53050127,88.898,88.826,47.6701]
[1645943543012,1.60516208,88.909,88.826,47.6701]
[1645943543215,8.12516208,88.909,88.826,47.6701]
[1645943543414,1.60516208,88.909,88.826,47.6701]
[1645943543613,6.52,88.906,88.826,47.6701]
[1645943544916,1.60516208,88.909,88.826,47.6701]
[1645943545219,6.52,88.901,88.826,47.6701]
[1645943546523,6.52,88.901,88.822,48.55283654]
[1645943547119,1.60516208,88.909,88.822,48.55283654]
[1645943547319,6.52,88.899,88.822,48.55283654]
[1645943549927,8.06903356,88.899,88.822,48.55283654]
[1645943550126,1.54903356,88.899,88.822,48.55283654]
[1645943550326,6.52,88.901,88.823,2.54094832]
[1645943550727,1.83872105,88.909,88.823,2.54094832]
[1645943550929,1.83872105,88.909,88.825,2.48143505]
[1645943551128,112.2,88.911,88.825,2.48143505]
[1645943552031,17.75040563,88.91,88.825,2.48143505]
[1645943552831,1.7244195,88.909,88.825,2.48143505]
[1645943553030,12.86104643,88.909,88.825,2.48143505]
[1645943553229,1.78113032,88.907,88.825,2.48143505]
[1645943553629,4.501,88.906,88.799,2.28769731]
[1645943553829,16.8919,88.9,88.799,2.28769731]
[1645943554029,6.29277208,88.899,88.799,2.28769731]
[1645943554229,27.18392648,88.899,88.799,2.28769731]
[1645943554430,1.68354441,88.898,88.799,2.28769731]
[1645943554731,1.86550637,88.896,88.801,2.26172412]
[1645943554929,6.52,88.891,88.801,2.26172412]
[1645943555129,16.57,88.89,88.801,2.26172412]
[1645943555332,1.83189552,88.889,88.801,2.26172412]
[1645943555533,16.8945,88.88,88.801,2.26172412]
[1645943555731,24.7105,88.879,88.801,2.26172412]
[1645943558934,29.8063,88.889,88.81,16.57]
[1645943559335,29.8063,88.889,88.811,3.02290249]
[1645943559535,24.2512,88.899,88.811,3.02290249]
[1645943560337,24.2512,88.899,88.813,2.97769881]
[1645943567953,23.4217,88.91,88.814,113.5]
[1645943568155,118.72,88.911,88.815,2.69230386]
[1645943568354,112.2,88.911,88.815,5.43909307]
[1645943568580,112.2,88.911,88.816,116.24678921]
[1645943568778,112.2,88.911,88.831,113.5]
[1645943569078,112.2,88.911,88.832,55.28930677]
[1645943569276,112.2,88.911,88.833,2.46747716]
[1645943577787,11.12052969,88.917,88.833,2.46747716]
[1645943577988,11.12052969,88.917,88.835,2.56504806]
[1645943578188,11.31486817,88.916,88.835,2.56504806]
[1645943578586,22.5346,88.915,88.835,2.56504806]
[1645943578991,21.5346,88.915,88.835,2.56504806]
[1645943579588,17.64052969,88.929,88.835,5.31183727]
[1645943579790,17.64052969,88.929,88.835,29.69643727]
[1645943579988,17.64052969,88.929,88.836,2.94623015]
[1645943580590,11.12052969,88.929,88.836,2.94623015]
[1645943580788,6.52,88.926,88.836,2.94623015]
[1645943587296,6.52,88.926,88.836,116.44623015]
[1645943587497,6.52,88.926,88.837,2.84046016]
[1645943587899,6.52,88.926,88.841,2.40237732]
[1645943597908,16.57,88.92,88.832,55.28930677]
[1645943598108,112.2,88.91,88.832,55.28930677]
[1645943598308,4.5,88.909,88.832,55.28930677]
[1645943598516,4.5,88.909,88.781,3.08849638]
[1645943598517,6.52,88.904,88.781,3.08849638]
[1645943598811,16.8968,88.87,88.768,2.74678921]
[1645943599008,1.56053392,88.869,88.768,2.74678921]
[1645943599506,2.74678921,88.868,88.769,43.25806041]
[1645943599708,47.2867,88.867,88.77,2.28895878]
[1645943599906,1.50347572,88.866,88.77,5.03574799]
[1645943600108,4.25026493,88.866,88.771,2.74678921]
[1645943600506,2.74678921,88.865,88.771,2.74678921]
[1645943604711,2.74678921,88.865,88.77,2.28895878]
[1645943604913,27.0791544,88.864,88.77,2.28895878]
[1645943605115,1.7923076,88.863,88.77,2.28895878]
[1645943605313,4.53909681,88.863,88.77,2.28895878]
[1645943605512,2.74678921,88.862,88.77,2.28895878]
[1645943607518,29.82594361,88.862,88.77,2.28895878]
[1645943607719,1.65851959,88.861,88.77,2.28895878]
[1645943607919,4.4053088,88.861,88.77,2.28895878]
[1645943608117,29.82594361,88.86,88.77,2.28895878]
[1645943608319,1.44723026,88.859,88.77,2.28895878]
[1645943608517,4.19401947,88.859,88.77,2.28895878]
[1645943608918,2.74678921,88.858,88.77,2.28895878]
[1645943611539,40.9464733,88.858,88.77,2.28895878]
[1645943611739,6.52,88.856,88.77,2.28895878]
[1645943612141,2.74678921,88.855,88.77,2.28895878]
[1645943612340,31.32868907,88.855,88.77,2.28895878]
[1645943612541,28.7339261,88.854,88.77,2.28895878]
[1645943612742,1.63031822,88.853,88.77,2.28895878]
[1645943613144,4.37710743,88.853,88.77,2.28895878]
[1645943613344,2.74678921,88.852,88.77,2.28895878]
[1645943614344,16.9015,88.85,88.769,43.25806041]
[1645943614644,6.52,88.848,88.769,43.25806041]
[1645943614846,8.02497977,88.848,88.769,43.25806041]
[1645943615145,6.52,88.843,88.769,43.25806041]
[1645943615549,52.81224361,88.842,88.769,43.25806041]
[1645943615748,1.65728598,88.841,88.769,43.25806041]
[1645943615947,31.48322959,88.841,88.769,43.25806041]
[1645943616146,4.10910011,88.84,88.769,43.25806041]
[1645943616348,31.18825451,88.84,88.769,43.25806041]
[1645943616545,4.36158897,88.839,88.769,43.25806041]
[1645943616745,1.51925139,88.838,88.769,43.25806041]
[1645943616946,4.2660406,88.838,88.769,43.25806041]
[1645943617148,2.74678921,88.837,88.769,43.25806041]
[1645943617351,14.06165738,88.837,88.769,43.25806041]
[1645943617748,28.59840579,88.838,88.769,43.25806041]
[1645943617749,29.82594361,88.836,88.769,43.25806041]
[1645943618151,2.74678921,88.835,88.769,43.25806041]
[1645943618848,2.74678921,88.835,88.77,3.00787642]
[1645943620557,22.9863,88.842,88.77,3.00787642]
[1645943620757,2.74678921,88.85,88.77,116.50787642]
[1645943620954,23.4757,88.861,88.771,5.424528]
[1645943621257,6.52,88.879,88.772,115.86849808]
[1645943621459,6.52,88.879,88.773,2.97876209]
[1645943621856,6.52,88.879,88.775,2.49486682]
[1645943622055,6.52,88.879,88.781,113.5]
[1645943622254,6.52,88.879,88.782,2.94299528]
[1645943623055,27.0791544,88.875,88.782,2.94299528]
[1645943623257,24.25539786,88.872,88.782,2.94299528]
[1645943623656,23.3024,88.871,88.782,2.94299528]
[1645943623857,24.25539786,88.866,88.782,2.94299528]
[1645943624857,2.74678921,88.865,88.782,2.94299528]
[1645943628165,23.3024,88.871,88.782,2.94299528]
[1645943628862,24.25539786,88.881,88.782,2.94299528]
[1645943629062,24.25539786,88.881,88.781,113.5]
[1645943629063,24.25539786,88.881,88.785,2.44643729]
[1645943629663,24.25539786,88.881,88.788,2.720161]
[1645943629863,24.25539786,88.881,88.791,116.13682464]
[1645943630062,24.25539786,88.881,88.792,2.68128478]
[1645943632364,23.377,88.887,88.792,2.68128478]
[1645943632564,23.377,88.887,88.793,2.74678921]
[1645943632765,23.377,88.887,88.793,116.24678921]
[1645943632964,23.377,88.887,88.794,2.58288316]
[1645943633164,23.377,88.887,88.794,5.32967237]
[1645943633365,23.377,88.887,88.795,2.74678921]
[1645943633566,23.377,88.887,88.811,113.5]
[1645943633868,23.377,88.887,88.812,2.44495615]
[1645943636469,22.89842217,88.886,88.812,2.44495615]
[1645943636667,1.41234591,88.885,88.797,2.82053692]
[1645943636866,46.19315769,88.885,88.797,2.82053692]
[1645943637067,4.51375523,88.884,88.797,2.82053692]
[1645943637279,16.8956,88.88,88.797,2.82053692]
[1645943637468,1.54047488,88.879,88.797,2.82053692]
[1645943637669,22.88832347,88.879,88.797,2.82053692]
[1645943637868,1.75656062,88.878,88.797,2.82053692]
[1645943638067,46.5373724,88.878,88.797,2.82053692]
[1645943638266,50.12588084,88.877,88.797,2.82053692]
[1645943638468,1.81237505,88.876,88.797,2.82053692]
[1645943638665,24.093,88.875,88.797,2.82053692]
[1645943638866,26.83978921,88.875,88.797,2.82053692]
[1645943639268,2.74678921,88.874,88.797,2.82053692]
[1645943639669,17.70165738,88.874,88.797,2.82053692]
[1645943640069,24.093,88.875,88.797,2.82053692]
[1645943640470,24.093,88.875,88.798,23.6959]
[1645943640670,24.093,88.875,88.799,2.83004732]
[1645943643496,24.093,88.875,88.799,116.33004732]
[1645943643673,24.093,88.875,88.8,2.8318167]
[1645943644872,24.093,88.875,88.802,2.56624424]
[1645943645073,2.74678921,88.899,88.802,2.56624424]
[1645943645272,2.74678921,88.899,88.803,2.74678921]
[1645943645672,2.74678921,88.899,88.802,2.56624424]
[1645943645873,22.5515,88.898,88.802,2.56624424]
[1645943646372,2.74678921,88.897,88.802,2.56624424]
[1645943647573,22.5515,88.898,88.803,2.74678921]
[1645943649475,2.74678921,88.897,88.803,2.74678921]
[1645943650376,22.5515,88.898,88.803,2.74678921]
[1645943651576,2.74678921,88.907,88.803,2.74678921]
[1645943651776,112.2,88.91,88.803,2.74678921]
[1645943651976,24.73743823,88.917,88.803,2.74678921]
[1645943652578,24.73743823,88.917,88.804,113.5]
[1645943652776,24.73743823,88.917,88.805,3.09797082]
[1645943652976,24.73743823,88.917,88.821,116.42414391]
[1645943653176,24.73743823,88.917,88.823,62.42616008]
[1645943653379,24.73743823,88.917,88.824,3.09137298]
[1645943653785,2.74678921,88.917,88.825,2.5978942]
[1645943656289,21.99064902,88.93,88.83,16.57]
[1645943656489,25.31216032,88.942,88.832,2.323553]
[1645943656689,412.55992854,88.945,88.832,2.323553]
[1645943656890,412.55992854,88.945,88.834,113.5]
[1645943657090,412.55992854,88.945,88.835,2.38430809]
[1645943657291,412.55992854,88.945,88.838,2.44124145]
[1645943657490,412.55992854,88.945,88.851,113.5]
[1645943657690,48.0348,88.958,88.855,113.5]
[1645943657892,48.0348,88.958,88.861,113.5]
[1645943658092,48.0348,88.958,88.862,2.33731485]
[1645943658502,48.0348,88.958,88.864,2.3304632]
[1645943659309,48.0348,88.958,88.864,121.7304632]
[1645943659510,48.0348,88.958,88.865,3.05774392]
[1645943661110,22.25064902,88.957,88.865,3.05774392]
[1645943662010,1.82685004,88.956,88.865,3.05774392]
[1645943663011,48.0348,88.958,88.865,3.05774392]
[1645943663309,48.0348,88.958,88.867,2.75282406]
[1645943663511,48.0348,88.958,88.871,116.39654786]
[1645943663711,48.0348,88.958,88.872,2.56819264]
[1645943666015,14.46254641,88.957,88.872,2.56819264]
[1645943666215,1.55483991,88.956,88.872,2.56819264]
[1645943666415,14.40502784,88.956,88.864,2.89950554]
[1645943666617,1.46600686,88.955,88.864,2.89950554]
[1645943666816,17.062984,88.955,88.864,2.89950554]
[1645943667016,14.33077933,88.954,88.864,2.89950554]
[1645943667218,1.6323981,88.953,88.864,2.89950554]
[1645943667418,5.08212494,88.953,88.864,2.89950554]
[1645943667618,5.08212494,88.953,88.852,23.1061]
[1645943667619,112.2,88.946,88.852,23.1061]
[1645943667820,1.63045807,88.945,88.852,23.1061]
[1645943668018,16.57,88.94,88.852,23.1061]
[1645943668220,6.09315898,88.939,88.852,23.1061]
[1645943668620,9.40046109,88.938,88.852,23.1061]
[1645943668820,10.92987541,88.938,88.852,23.1061]
[1645943670024,8.77692484,88.936,88.852,23.1061]
[1645943670224,6.32675302,88.935,88.824,2.75386734]
[1645943670426,1.59978197,88.934,88.824,2.75386734]
[1645943670626,16.57,88.93,88.824,2.75386734]
[1645943670826,7.0,88.921,88.824,2.75386734]
[1645943671026,16.8893,88.91,88.825,45.54876859]
[1645943671224,1.59411538,88.908,88.825,45.54876859]
[1645943671925,22.25064902,88.907,88.825,45.54876859]
[1645943672123,1.73038745,88.906,88.825,45.54876859]
[1645943672524,16.8918,88.9,88.792,2.39154546]
[1645943672725,1.45664522,88.899,88.792,2.39154546]
[1645943672928,7.0,88.891,88.781,2.5382697]
[1645943673527,7.0,88.891,88.782,46.13633679]
[1645943673727,16.8943,88.89,88.783,2.68889079]
[1645943673928,7.0,88.884,88.783,2.68889079]
[1645943674127,1.44786968,88.889,88.783,2.68889079]
[1645943675228,8.44786968,88.889,88.783,2.68889079]
[1645943676332,30.6985187,88.889,88.783,2.68889079]
[1645943676530,1.61786007,88.888,88.783,2.68889079]
[1645943676730,22.7849,88.887,88.783,2.68889079]
[1645943676929,1.47561996,88.886,88.783,2.68889079]
[1645943677531,33.4659,88.88,88.783,2.68889079]
[1645943677733,6.36219613,88.879,88.783,2.68889079]
[1645943677935,69.22565767,88.879,88.783,2.68889079]
[1645943678133,24.28879582,88.878,88.783,2.68889079]
[1645943678333,5.8819834,88.877,88.782,46.13633679]
[1645943678538,1.35003926,88.876,88.782,46.13633679]
[1645943678736,4.503,88.875,88.782,46.13633679]
[1645943678937,20.83815804,88.875,88.782,46.13633679]
[1645943679137,24.6967,88.874,88.782,46.13633679]
[1645943679337,16.57,88.87,88.782,46.13633679]
[1645943679536,16.8986,88.86,88.782,46.13633679]
[1645943679739,1.48589393,88.859,88.782,46.13633679]
[1645943679938,4.23268314,88.859,88.782,46.13633679]
[1645943680140,23.39055706,88.858,88.782,46.13633679]
[1645943680340,24.40663244,88.857,88.782,46.13633679]
[1645943680640,1.75956654,88.856,88.782,46.13633679]
[1645943680838,4.50635575,88.856,88.782,46.13633679]
[1645943681038,4.13205539,88.855,88.782,46.13633679]
[1645943681237,1.59560284,88.854,88.782,46.13633679]
[1645943681442,27.20665237,88.854,88.782,46.13633679]
[1645943681639,1.44916448,88.853,88.782,46.13633679]
[1645943681839,27.06021401,88.853,88.782,46.13633679]
[1645943682041,27.08654077,88.852,88.782,46.13633679]
[1645943682241,1.82588854,88.851,88.782,46.13633679]
[1645943682441,1.54959632,88.85,88.754,2.82331225]
[1645943682644,1.54959632,88.85,88.741,4.503]
[1645943682645,72.82818378,88.85,88.743,2.29432036]
[1645943682942,39.54151011,88.849,88.743,2.29432036]
[1645943683148,1.84328764,88.848,88.743,2.29432036]
[1645943683344,64.64771333,88.848,88.744,44.23731602]
[1645943683546,42.10711641,88.847,88.745,2.95044115]
[1645943683742,1.7143054,88.846,88.745,2.95044115]
[1645943683941,66.03127077,88.846,88.745,2.95044115]
[1645943684142,19.37659131,88.845,88.745,2.95044115]
[1645943684341,1.60449234,88.844,88.745,2.95044115]
[1645943684541,26.60193057,88.844,88.745,2.95044115]
[1645943684756,4.37209395,88.843,88.745,2.95044115]
[1645943684955,27.76265101,88.843,88.745,2.95044115]
[1645943685156,26.56186711,88.842,88.745,2.95044115]
[1645943685357,1.64815955,88.841,88.745,2.95044115]
[1645943685759,1.64815955,88.841,88.747,2.96665956]
[1645943688959,22.30968487,88.84,88.747,2.96665956]
[1645943689562,22.9334,88.839,88.747,2.96665956]
[1645943690462,22.30968487,88.838,88.747,2.96665956]
[1645943692260,22.30968487,88.838,88.747,116.46665956]
[1645943692461,22.9334,88.839,88.746,22.6519]
[1645943692462,22.9334,88.839,88.751,113.5]
[1645943692664,22.9334,88.839,88.751,115.81807272]
[1645943692864,22.9334,88.839,88.752,2.99557998]
[1645943695173,45.24308487,88.839,88.752,2.99557998]
[1645943696375,113.5,88.837,88.752,2.99557998]
[1645943696576,113.5,88.837,88.711,4.503]
[1645943696577,1.75870173,88.836,88.711,4.503]
[1645943696774,118.005,88.835,88.707,2.27496588]
[1645943696975,16.57,88.82,88.707,2.27496588]
[1645943697175,7.0,88.811,88.707,2.27496588]
[1645943697377,39.764,88.81,88.707,2.27496588]
[1645943697574,1.65412926,88.809,88.708,44.61448684]
[1645943697774,17.72352307,88.809,88.709,2.85069224]
[1645943697976,24.38665943,88.808,88.709,2.85069224]
[1645943698277,1.71512916,88.807,88.709,2.85069224]
[1645943698475,16.9107,88.8,88.709,2.85069224]
[1645943698678,1.55832032,88.799,88.709,2.85069224]
[1645943699076,2.74678921,88.798,88.709,2.85069224]
[1645943699276,55.94308974,88.798,88.709,2.85069224]
[1645943699475,1.79741679,88.797,88.709,2.85069224]
[1645943699675,1.70806004,88.795,88.709,2.85069224]
[1645943700278,25.05647408,88.794,88.709,2.85069224]
[1645943700777,2.74678921,88.793,88.709,2.85069224]
[1645943701479,29.21550489,88.793,88.709,2.85069224]
[1645943701677,29.21550489,88.793,88.709,116.35069224]
[1645943701880,2.74678921,88.792,88.71,2.68623508]
[1645943702177,24.7938,88.796,88.711,118.006]
[1645943702378,23.194,88.81,88.712,2.25292621]
[1645943702579,23.194,88.81,88.713,4.506]
[1645943703078,2.74678921,88.823,88.713,4.506]
[1645943707387,49.84211568,88.829,88.713,4.506]
[1645943707786,2.74678921,88.828,88.713,4.506]
[1645943709286,2.74678921,88.828,88.712,2.25292621]
[1645943709486,2.74678921,88.828,88.713,4.506]
[1645943709688,2.74678921,88.828,88.714,113.5]
[1645943709888,2.74678921,88.828,88.716,113.5]
[1645943710088,2.74678921,88.828,88.731,113.5]
[1645943710289,2.74678921,88.828,88.732,25.89000981]
[1645943710488,2.74678921,88.828,88.733,120.73594148]
[1645943710688,2.74678921,88.828,88.734,2.26917702]
[1645943710889,2.74678921,88.828,88.736,113.5]
[1645943711118,23.3734,88.829,88.741,113.5]
[1645943711312,23.3734,88.829,88.743,113.5]
[1645943711512,2.74678921,88.843,88.745,113.5]
[1645943711710,2.74678921,88.843,88.751,113.5]
[1645943711910,2.74678921,88.843,88.752,7.31421508]
[1645943712110,16.06939381,88.849,88.753,113.5]
[1645943712409,16.06939381,88.849,88.754,4.503]
[1645943712610,23.0088,88.85,88.756,2.80567628]
[1645943712910,23.0088,88.85,88.761,113.5]
[1645943713110,23.0088,88.85,88.762,52.85826949]
[1645943713410,23.0088,88.85,88.763,116.41819566]
[1645943713609,23.0088,88.85,88.764,2.47343866]
[1645943713810,23.0088,88.85,88.765,4.503]
[1645943714113,23.0088,88.85,88.772,2.4722808]
[1645943714909,23.0088,88.85,88.772,6.9752808]
[1645943715409,23.0088,88.85,88.774,2.95638188]
[1645943717214,2.74678921,88.849,88.774,2.95638188]
[1645943721017,2.74678921,88.849,88.774,2.45638188]
[1645943727722,24.67904488,88.85,88.774,2.45638188]
[1645943727922,23.0088,88.85,88.774,2.45638188]
[1645943728324,23.0088,88.85,88.775,4.503]
[1645943729127,2.74678921,88.863,88.774,2.45638188]
[1645943729530,2.74678921,88.863,88.775,4.503]
[1645943732031,1.47713581,88.862,88.775,4.503]
[1645943732430,2.74678921,88.861,88.775,4.503]
[1645943732630,29.21550489,88.861,88.775,4.503]
[1645943732828,1.83740211,88.86,88.775,4.503]
[1645943733029,4.58419132,88.86,88.775,4.503]
[1645943735337,2.74678921,88.859,88.775,4.503]
[1645943739041,1.7398208,88.867,88.775,4.503]
[1645943739244,22.9665,88.869,88.781,116.21326205]
[1645943739548,22.9665,88.869,88.782,2.40792332]
[1645943739743,2.74678921,88.894,88.783,0.25]
[1645943739942,2.74678921,88.894,88.783,168.40483386]
[1645943740143,2.74678921,88.894,88.785,113.5]
[1645943740343,2.74678921,88.894,88.786,2.29293796]
[1645943740543,2.74678921,88.894,88.8,16.57]
[1645943740742,2.74678921,88.894,88.801,101.22848081]
[1645943740943,24.04204902,88.893,88.802,115.77177954]
[1645943741242,1.82219742,88.892,88.803,2.61515666]
[1645943741444,1.6200568,88.891,88.803,2.61515666]
[1645943741942,4.36684601,88.891,88.803,2.61515666]
[1645943743443,1.6200568,88.891,88.803,2.61515666]
[1645943747049,1.6200568,88.891,88.803,10.27515666]
[1645943747250,1.6200568,88.891,88.804,113.5]
[1645943747451,23.0147,88.892,88.805,2.59705511]
[1645943747649,23.0147,88.892,88.811,113.5]
[1645943747849,23.0147,88.892,88.812,2.64067428]
[1645943748050,23.0147,88.892,88.813,23.7551]
[1645943748652,23.0147,88.892,88.814,2.62971475]
[1645943749752,23.0147,88.892,88.814,8.59971475]
[1645943751654,23.0147,88.892,88.815,4.501]
[1645943753479,23.0147,88.892,88.814,2.62971475]
[1645943755288,23.0147,88.892,88.815,4.501]
[1645943755689,23.0147,88.892,88.815,10.561]
[1645943755883,23.6316,88.913,88.816,113.5]
[1645943756092,24.7854,88.912,88.821,113.5]
[1645943756284,24.7854,88.912,88.823,113.5]
[1645943756484,24.7854,88.912,88.825,113.5]
[1645943756686,24.7854,88.912,88.841,113.5]
[1645943756986,24.7854,88.912,88.843,2.4995626]
[1645943759588,2.74678921,88.935,88.844,7.24678921]
[1645943759788,16.8782,88.98,88.844,7.24678921]
[1645943759789,22.7023,88.938,88.844,31.92338921]
[1645943759993,22.7023,88.938,88.845,5.04017632]
[1645943760188,22.7023,88.938,88.846,4.499]
[1645943760389,22.7023,88.938,88.85,16.57]
[1645943760588,22.7023,88.938,88.851,6.9301678]
[1645943760797,22.7023,88.938,88.851,2.4311678]
[1645943762591,1.48650227,88.937,88.851,2.4311678]
[1645943762789,4.23329148,88.937,88.851,2.4311678]
[1645943762990,2.74678921,88.936,88.851,2.4311678]
[1645943763790,2.74678921,88.936,88.85,16.57]
[1645943763990,25.34862286,88.936,88.844,24.6766]
[1645943764190,45.79258782,88.935,88.842,50.42492315]
[1645943764391,1.74697743,88.934,88.842,50.42492315]
[1645943764590,16.57,88.93,88.842,50.42492315]
[1645943764796,1.55415886,88.929,88.842,50.42492315]
[1645943765194,2.74678921,88.928,88.842,50.42492315]
[1645943765391,1.57316597,88.927,88.842,50.42492315]
[1645943765591,24.77,88.926,88.842,50.42492315]
[1645943765791,1.46392506,88.925,88.842,50.42492315]
[1645943766094,1.55282494,88.924,88.842,50.42492315]
[1645943766292,63.99195361,88.924,88.842,50.42492315]
[1645943766493,1.38150258,88.919,88.842,50.42492315]
[1645943766892,18.54203521,88.918,88.842,50.42492315]
[1645943767092,6.00098111,88.917,88.842,50.42492315]
[1645943767294,24.54301632,88.917,88.842,50.42492315]
[1645943767491,25.49669698,88.916,88.842,50.42492315]
[1645943767692,5.89706773,88.915,88.842,50.42492315]
[1645943768092,23.2116,88.914,88.842,50.42492315]
[1645943768294,1.85444572,88.913,88.842,50.42492315]
[1645943768699,4.60123493,88.913,88.842,50.42492315]
[1645943768898,2.74678921,88.912,88.842,50.42492315]
[1645943770399,24.04204902,88.911,88.842,50.42492315]
[1645943770599,1.44677114,88.91,88.842,50.42492315]
[1645943770799,4.19356035,88.91,88.842,50.42492315]
[1645943771020,1.5974135,88.908,88.842,50.42492315]
[1645943771403,2.74678921,88.907,88.842,50.42492315]
[1645943771902,4.48240514,88.907,88.842,50.42492315]
[1645943772309,2.74678921,88.906,88.842,50.42492315]
[1645943777411,23.2116,88.914,88.842,50.42492315]
[1645943777612,23.2116,88.914,88.842,60.83479644]
[1645943779736,2.74678921,88.913,88.842,60.83479644]
[1645943782454,2.74678921,88.913,88.842,58.34492315]
[1645943782638,4.14658649,88.913,88.842,58.34492315]
[1645943783039,2.74678921,88.912,88.842,58.34492315]
[1645943783240,2.74678921,88.912,88.842,50.42492315]
[1645943783640,4.56135271,88.912,88.842,50.42492315]
[1645943783944,1.8145635,88.912,88.842,50.42492315]
[1645943784142,2.74678921,88.911,88.842,50.42492315]
[1645943792056,1.4715979,88.909,88.842,50.42492315]
[1645943792355,2.74678921,88.908,88.842,50.42492315]
[1645943792556,26.78883823,88.908,88.842,50.42492315]
[1645943792757,1.70403768,88.907,88.842,50.42492315]